[Event "4th Tata Steel India Blitz Open 2022"]
[Site "Kolkota"]
[Date "2022.12.04"]
[Round "13.5"]
[White "So, Wesley"]
[Black "Maghsoodloo, Parham"]
[Result "1/2-1/2"]
[ECO "E10"]
[WhiteElo "2760"]
[BlackElo "2720"]
[Annotator "TA"]
[PlyCount "194"]
[EventDate "2022.11.29"]
[EventType "tourn"]
[EventCountry "IND"]
[SourceTitle "playchess.com"]
[Source "ChessBase"]
[SourceQuality "1"]
[TimeControl "180+2"]

{[%evp 22,193,25,24,13,22,0,15,42,28,36,50,53,0,35,27,33,24,22,-17,61,10,17,-93,-87,-68,-56,-90,-58,-93,-93,-102,-39,-110,-105,-102,0,-100,-79,-295,-287,-279,-295,-281,-200,-201,-187,-389,-348,-357,-171,-171,-169,-176,-101,-101,-101,-101,-101,-101,-101,-101,-101,-101,-101,-101,-101,-101,-102,-122,-101,-101,-101,-101,-101,-101,-101,-101,-101,-101,-101,-116,-115,-135,-135,-135,-135,-135,-135,-135,-135,-135,-135,-135,-135,-135,-135,-183,-135,-198,-198,-198,-135,-135,0,-135,-135,-183,-135,-135,-102,-97,0,-135,-135,-135,-135,-135,-135,-135,-135,-135,-135,-135,-135,-135,-135,-135,-135,-135,-135,-183,-183,-183,-102,-102,-102,-102,-102,-102,-102,-102,0,0,0,-102,-102,-102,-102,-102,0,-102,0,-102,-102,-102,-102,-102,-102,-102,-102,-102,-102,-102,0,0,0,-610,-589,-480,0,0,0,0]} 1. d4 {[%emt 0:00:02]} Nf6 {[%emt 0:00:01]} 2. c4 {[%emt 0:00:01]} e6 {[%emt 0:00:01]} 3. Nf3 {[%emt 0:00:01]} h6 {[%emt 0:00:01]} 4. Nc3 {[%emt 0:00:09]} Bb4 {[%emt 0:00:01]} 5. Qc2 {[%emt 0:00:10]} c5 {[%emt 0:00:05]} 6. dxc5 {[%emt 0:00:03]} Na6 {[%emt 0:00:01]} 7. g3 {[%emt 0:00:04]} Nxc5 {[%emt 0:00:02]} 8. Bg2 {[%emt 0:00:01]} b6 {[%emt 0:00:01]} 9. O-O {[%emt 0:00:04]} Bb7 {[%emt 0:00:06]} 10. Nb5 {[%emt 0:00:32]} Nce4 {[%emt 0:00:02]} 11. Bf4 {[%emt 0:00:11]} O-O {[%emt 0:00:12]} 12. a3 {[%emt 0:00:05]} Be7 {[%emt 0:00:02]} 13. Nfd4 {[%emt 0:01:03]} a6 {[%emt 0:00:15]} 14. Nc3 $1 {[%emt 0:00:02]} Nc5 {[%emt 0:00:03]} 15. b4 {[%emt 0:00:08]} Bxg2 {[%emt 0:00:03]} 16. Kxg2 {[%emt 0:00:00]} Nb7 {[%emt 0:00:01]} 17. Rfd1 {[%emt 0:00:03]} (17. Qd3 $14) 17... Bd6 {[%emt 0:00:28]} 18. Nxe6 {[%emt 0:00:20]} dxe6 {[%emt 0:00:02]} 19. c5 {[%emt 0:00:05]} (19. Bxd6 {simplifies} Nxd6 20. c5 bxc5 21. bxc5 Qa5 22. cxd6 Rac8 23. Rd3) 19... bxc5 {[%emt 0:00:02]} 20. bxc5 {[%emt 0:00:01]} (20. Bxd6 {simplifies} Nxd6 21. bxc5 Qa5 22. cxd6 Rac8 23. Rd3) 20... Rc8 {[%emt 0:00:02]} (20... e5 $1 $11 21. Be3 Qc7 $1 22. cxd6 Nxd6) 21. cxd6 {[%emt 0:00:13]} (21. Bxd6 $14 Nxd6 22. Rxd6) 21... Nd5 $1 $11 {[%emt 0:00:04]} 22. Rd3 {[%emt 0:00:00] [#]} (22. Be5 $11 {keeps the balance.}) 22... Nxf4+ $1 $17 {[%emt 0:00:22]} (22... Nxd6 $2 23. Bxd6 Qxd6 24. e4 $18) 23. gxf4 {[%emt 0:00:01]} Nxd6 {[%emt 0:00:01]} 24. Rad1 {[%emt 0:00:06]} Qf6 {[%emt 0:00:03]} 25. Rxd6 {[%emt 0:00:05]} Rxc3 {[%emt 0:00:01]} 26. Qa4 {[%emt 0:00:01]} Qh4 {[%emt 0:00:09]} (26... Rfc8 $17 {aiming for ...R8c4.} 27. R6d4 Qg6+ 28. Kh1 R8c6 29. Rd8+ Kh7) 27. e3 {[%emt 0:00:07]} (27. R6d3 $15 Rxd3 28. Rxd3) 27... Qg4+ $17 {[%emt 0:00:20]} 28. Kf1 {[%emt 0:00:00]} Qh4 {[%emt 0:00:12]} (28... Qf3 {is interesting.} 29. Rd8 Rxd8 30. Rxd8+ Kh7) 29. Kg2 $1 {[%emt 0:00:01]} Rc5 {[%emt 0:00:03]} (29... e5 {simplifies} 30. h3 exf4 31. Qxf4 Qxf4 32. exf4 Rxa3 33. Rb6 Rc8) 30. h3 $2 {[%emt 0:00:10]} (30. Qe4 $17) 30... Rg5+ $19 {[%emt 0:00:01]} 31. Kf1 {[%emt 0:00:07]} Qxh3+ {[%emt 0:00:01]} 32. Ke2 Qh5+ {[%emt 0:00:02]} 33. Kf1 {[%emt 0:00:03]} Ra5 {[%emt 0:00:20]} ({And not} 33... Qg4 34. Rd8 Qh3+ 35. Ke2 Qh5+ 36. Kf1 $17) 34. Qb3 $2 {[%emt 0:00:01]} (34. Qc2) 34... Qf3 $19 {[%emt 0:00:04]} 35. Rd8 {[%emt 0:00:02]} Qh1+ {[%emt 0:00:10]} (35... Rb5 $142 36. Qd3 g6 37. Rxf8+ Kxf8 38. Qd6+ Kg8 39. Qd8+ Kh7) 36. Ke2 $19 Qh5+ {[%emt 0:00:02]} 37. Kf1 {[%emt 0:00:01]} Qb5+ {[%emt 0:00:01]} (37... Rxd8 $19 38. Rxd8+ Kh7 39. Qd3+ f5) 38. Qxb5 $17 {[%emt 0:00:01]} axb5 {[%emt 0:00:02]} 39. R8d3 {[%emt 0:00:03]} Rfa8 {[%emt 0:00:01]} 40. Rb1 {[%emt 0:00:01]} Rxa3 {[%emt 0:00:05]} 41. Rxa3 {[%emt 0:00:00]} Rxa3 42. Rxb5 {[%emt 0:00:01]} g6 {[%emt 0:00:05]} 43. Kg2 {[%emt 0:00:01]} Kg7 {[%emt 0:00:01]} 44. Rb2 {[%emt 0:00:01]} Ra5 {[%emt 0:00:01]} 45. Kf3 {[%emt 0:00:01]} Ra1 {[%emt 0:00:15]} 46. Kg2 {[%emt 0:00:00]} Kf6 {[%emt 0:00:01]} 47. Rc2 {[%emt 0:00:01]} h5 {[%emt 0:00:18]} 48. Rb2 {[%emt 0:00:01]} Ra6 {[%emt 0:00:02]} 49. Rc2 {[%emt 0:00:02]} Rd6 {[%emt 0:00:05]} 50. Rc5 {[%emt 0:00:03]} Rd5 {[%emt 0:00:02]} 51. Rc7 {[%emt 0:00:03]} e5 {[%emt 0:00:02]} 52. e4 {[%emt 0:00:10]} Ra5 {[%emt 0:00:09]} 53. Rc6+ {[%emt 0:00:04]} Kg7 {[%emt 0:00:01]} 54. fxe5 {[%emt 0:00:05]} Rxe5 {[%emt 0:00:01]} 55. f3 {[%emt 0:00:00]} g5 {[%emt 0:00:06]} 56. Kg3 {[%emt 0:00:04]} Ra5 {[%emt 0:00:01]} 57. Rc3 {[%emt 0:00:02]} f6 {[%emt 0:00:02]} 58. Rc7+ {[%emt 0:00:01]} Kg6 {[%emt 0:00:01]} 59. Rc8 {[%emt 0:00:01]} (59. Rc6 $17) 59... Ra1 {[%emt 0:00:01]} (59... h4+ $19 60. Kh3 Ra1) 60. Rg8+ {[%emt 0:00:01]} (60. Rc6 $17 {was called for.}) 60... Kf7 $19 {[%emt 0:00:01]} 61. Rb8 {[%emt 0:00:01]} Rg1+ {[%emt 0:00:05]} (61... h4+ $19 62. Kg2 Ra2+ 63. Kh3 Rf2) 62. Kf2 $17 {[%emt 0:00:01]} Ra1 {[%emt 0:00:03]} (62... Rc1 $17 63. Kg2 h4) 63. Rb7+ {[%emt 0:00:00]} (63. Kg3 $1 $11) 63... Kg6 $17 {[%emt 0:00:01]} 64. Rb6 {[%emt 0:00:01]} (64. Kg2 $17) 64... Ra5 {[%emt 0:00:04]} (64... Ra2+ $19 65. Kf1 Ra5) 65. Kg3 $17 {[%emt 0:00:01]} Kf7 {[%emt 0:00:04]} 66. Rb7+ {[%emt 0:00:00]} Kg6 {[%emt 0:00:01]} 67. Rb6 {[%emt 0:00:01]} Re5 {[%emt 0:00:00]} 68. Ra6 {[%emt 0:00:00]} Kf7 {[%emt 0:00:01]} 69. Ra7+ {[%emt 0:00:01]} Re7 {[%emt 0:00:01]} 70. Ra6 {[%emt 0:00:01]} Kg7 {[%emt 0:00:01]} 71. Rb6 {[%emt 0:00:01]} Rd7 {[%emt 0:00:02]} 72. Ra6 {[%emt 0:00:02]} Rb7 {[%emt 0:00:01]} 73. Rc6 {[%emt 0:00:01]} Rb1 {[%emt 0:00:02]} 74. Rc7+ {[%emt 0:00:01]} Kg6 {[%emt 0:00:01]} 75. Rc6 {[%emt 0:00:01]} h4+ {[%emt 0:00:01]} 76. Kf2 {[%emt 0:00:18]} (76. Kh3 $17 {is a better defense.}) 76... Rb2+ $19 {[%emt 0:00:04]} 77. Kg1 Re2 {[%emt 0:00:05]} (77... Kf7 $19 78. Rc8 Ke6 79. Re8+ Kd7) 78. Kf1 $17 {[%emt 0:00:03]} Ra2 {[%emt 0:00:05]} 79. e5 {[%emt 0:00:01]} Kf5 {[%emt 0:00:02]} 80. exf6 {[%emt 0:00:03]} Ra7 {[%emt 0:00:02]} 81. Kg2 {[%emt 0:00:02] [#]} Rf7 {[%emt 0:00:02]} (81... Kg6 $1 $17 82. Kh3 Ra4) 82. Rc5+ $11 {[%emt 0:00:10]} Kxf6 {[%emt 0:00:01]} 83. Kh3 {[%emt 0:00:02]} (83. f4 $1 $11) 83... Kg6 $17 {[%emt 0:00:01]} 84. Kg2 {[%emt 0:00:01]} Rf6 {[%emt 0:00:02]} 85. Ra5 {[%emt 0:00:01]} Re6 {[%emt 0:00:02]} (85... Kh5 $17 86. Ra8 Rf5) 86. Kf2 {[%emt 0:00:01]} (86. f4 $1 $11 {was the only way to keep the balance.} gxf4 87. Kf3) 86... Kf6 {[%emt 0:00:01]} (86... Rb6 $17 87. Ra8 Rb2+ 88. Kf1 Kf6 89. Rf8+ Ke6 90. Re8+ Kf6 91. Rf8+ Ke5) 87. Rb5 {[%emt 0:00:01]} (87. f4 $1 $11) 87... Re5 $17 {[%emt 0:00:01]} 88. Rb8 {[%emt 0:00:01]} Ra5 {[%emt 0:00:03]} 89. Kg2 {[%emt 0:00:02]} Ra2+ {[%emt 0:00:02]} 90. Kh3 {[%emt 0:00:01]} Rf2 {[%emt 0:00:01]} 91. Rb3 {[%emt 0:00:11]} Kf5 {[%emt 0:00:02]} 92. Ra3 {[%emt 0:00:01]} Kf4 {[%emt 0:00:01]} ({Black should try} 92... Rf1 $17 {White must now prevent ...Rg1.} 93. Kg2 Re1) 93. Ra4+ $11 {[%emt 0:00:01]} Kxf3 {[%emt 0:00:03]} 94. Ra3+ $2 {[%emt 0:00:04][%mdl 8192]} (94. Ra5 $11) 94... Kf4 $19 {[%emt 0:00:01]} 95. Ra4+ {[%emt 0:00:01]} Kf5 $2 {[%emt 0:00:01]} (95... Ke3 $19 {...Rf4 is the strong threat.} 96. Ra3+ Kd4 97. Ra4+ Kd3 98. Ra3+ Kc4 99. Ra4+ Kb3) 96. Ra5+ $11 {[%emt 0:00:01]} Kf6 {[%emt 0:00:10]} (96... Ke4 $5 {[%cal Rf2f3]} 97. Rxg5 Rf6 $11) 97. Rxg5 $1 {[%emt 0:00:02]} Kxg5 {[%emt 0:00:03]} 1/2-1/2

[Event "4th Tata Steel India Blitz Open 2022"]
[Site "Kolkota"]
[Date "2022.12.04"]
[Round "14.1"]
[White "Abdusattorov, Nodirbek"]
[Black "Gukesh D"]
[Result "1/2-1/2"]
[ECO "B22"]
[WhiteElo "2713"]
[BlackElo "2725"]
[Annotator "TA"]
[PlyCount "133"]
[EventDate "2022.11.29"]
[EventType "tourn"]
[EventCountry "IND"]
[SourceTitle "playchess.com"]
[Source "ChessBase"]
[SourceQuality "1"]
[TimeControl "180+2"]

{[%evp 21,133,-7,0,0,0,0,0,0,0,0,0,-11,-16,-22,0,0,18,9,18,0,0,0,0,0,28,0,118,133,133,65,51,14,256,239,236,0,0,0,0,0,0,-30,-22,-17,-20,-17,-18,-18,-11,-8,-15,-16,-9,-10,-11,-16,-10,-11,-7,-93,-57,-59,-18,-29,0,0,0,0,0,0,12,0,0,-4,0,0,14,0,0,0,0,0,0,-195,-87,-467,-52,-56,-53,-53,-53,-89,-8,-8,-8,-8,-8,-8,-8,-8,-8,-592,-592,-591,-87,-29973,-12838,-29980,-8,-8,-8,-8,-8,-8]} 1. e4 {[%emt 0:00:02]} c5 {[%emt 0:00:01]} 2. Nf3 {[%emt 0:00:01]} Nc6 {[%emt 0:00:02]} 3. c3 {[%emt 0:00:01]} d5 {[%emt 0:00:02]} 4. exd5 {[%emt 0:00:01]} Qxd5 {[%emt 0:00:01]} 5. d4 {[%emt 0:00:01]} Nf6 {[%emt 0:00:03]} 6. Be2 {[%emt 0:00:08]} cxd4 {[%emt 0:00:02]} 7. cxd4 {[%emt 0:00:02]} e6 {[%emt 0:00:01]} 8. O-O {[%emt 0:00:04]} Be7 {[%emt 0:00:01]} 9. Nc3 {[%emt 0:00:02]} Qd6 {[%emt 0:00:01]} 10. Bg5 {[%emt 0:00:20]} O-O {[%emt 0:00:04]} 11. Qd2 {[%emt 0:00:32]} b6 {[%emt 0:00:14]} 12. Rac1 {[%emt 0:00:33] Bxf6 is the strong threat. B22: Sicilian: 2 c3.} Bb7 {[%emt 0:00:02]} 13. Rfd1 {[%emt 0:00:03]} Rfd8 {[%emt 0:00:16]} 14. Bf4 {[%emt 0:00:06]} Qd7 {[%emt 0:01:03]} 15. h3 {[%emt 0:00:02] [#]} Nd5 $146 {[%emt 0:00:09]} ({Predecessor:} 15... a6 16. Na4 Nd5 17. Bg3 Bf6 18. Nc3 Nce7 19. Ne4 Rac8 20. Rxc8 Nxc8 21. Nxf6+ Nxf6 {1-0 (58) Gredka,D (1690)-Szelag,Z (1688) Szklarska Poreba 2016}) 16. Bg3 {[%emt 0:00:06]} Rac8 {[%emt 0:00:04]} 17. Bd3 {[%emt 0:00:07]} Nf6 {[%emt 0:00:02]} 18. a3 {[%emt 0:00:08]} Bd6 {[%emt 0:00:11]} 19. Bh4 {[%emt 0:00:03]} Be7 {[%emt 0:00:04]} 20. Qe3 {[%emt 0:00:08]} Qe8 {[%emt 0:00:11]} (20... Nxd4 $2 21. Nxd4 Nd5 22. Nxd5 Bxh4 23. Rxc8 Qxc8 24. Qe4 $18) 21. Bg3 {[%emt 0:00:12]} Na5 {[%emt 0:00:18]} 22. Nb5 {[%emt 0:00:01]} Nd5 {[%emt 0:00:14]} 23. Qe2 {[%emt 0:00:03]} (23. Qe4 $5 {[%cal Re4h7]} Nf6 24. Qe2 $11) 23... a6 {[%emt 0:00:04]} (23... Nc6 $11) 24. Nc7 $1 $16 {[%emt 0:00:03] White is more active.} Nxc7 {[%emt 0:00:06]} 25. Bxc7 {[%emt 0:00:01]} (25. Rxc7 $16 Bd5 26. Bxa6) 25... Nb3 $14 {[%emt 0:00:01][%csl LRc1,LRd4]} 26. Bxh7+ {[%emt 0:00:29]} Kh8 $2 {[%emt 0:00:00]} (26... Kxh7 $11 27. Qd3+ Kg8 28. Qxb3 Rd5) 27. Rc3 $18 {[%emt 0:00:01]} Rd7 {[%emt 0:00:29]} 28. Ne5 $2 {[%emt 0:00:03]} (28. Bxb6 Rxc3 29. bxc3 Kxh7 $16) (28. Rxb3 $6 Rdxc7 29. Bb1 b5 $16) (28. Bb1 $1 $18 Rcxc7 29. Ne5 (29. Rxb3 Rd6 $16) (29. Qc2 f5 $16)) 28... Kxh7 $11 {[%emt 0:00:01]} (28... Rdxc7 $2 29. Qh5 $18) 29. Bxb6 {[%emt 0:00:12]} Rxc3 30. bxc3 Rd5 {[%emt 0:00:02] Strongly threatening ...Kg8.} 31. c4 {[%emt 0:00:05] [#]} Rxe5 $1 {[%emt 0:00:10]} 32. Qxe5 {[%emt 0:00:16] And now d5 would win.} Qc6 {[%emt 0:00:00][%csl Gb7][%cal Rc6g2]} (32... Bxa3 $2 33. d5 $18 (33. Qg3 Qc6 $11)) 33. d5 {[%emt 0:00:04]} Qxb6 34. dxe6 $1 {[%emt 0:00:00] Dancing on a razor blade.} Qxe6 {[%emt 0:00:07]} (34... Bxa3 35. Qh5+ Kg8 36. Qxf7+ Kh8 37. Qh5+ Kg8 38. Qe8+ (38. Rd7 $2 Qxe6 39. Rd1 Qxc4 $19) 38... Kh7 39. Rd7 $18) 35. Qxe6 {[%emt 0:00:02][%mdl 64] Remove Defender} fxe6 {[%emt 0:00:01]} 36. Rd7 {[%emt 0:00:01][%csl LRb7,LRe7]} Bxa3 {[%emt 0:00:01]} 37. Rxb7 {[%emt 0:00:01]} Nc5 {[%emt 0:00:01]} 38. Rb8 {[%emt 0:00:04]} a5 {[%emt 0:00:02]} 39. Kf1 {[%emt 0:00:02]} a4 {[%emt 0:00:03]} 40. Ra8 {[%emt 0:00:01]} (40. Ke2 $11) 40... Bb2 {[%emt 0:00:01]} 41. Ke2 {[%emt 0:00:04]} a3 {[%emt 0:00:02]} (41... Kg6 $5) 42. Kd1 {[%emt 0:00:03]} Nd3 {[%emt 0:00:01]} 43. Kc2 {[%emt 0:00:02]} Nc5 {[%emt 0:00:06]} 44. Ra5 {[%emt 0:00:02]} Nb7 {[%emt 0:00:02]} 45. Ra7 {[%emt 0:00:04]} Nc5 {[%emt 0:00:01]} 46. Ra5 {[%emt 0:00:01][%mdl 1024] White has compensation.} Nb7 {[%emt 0:00:04]} 47. Ra7 {[%emt 0:00:02]} Nd6 {[%emt 0:00:02]} (47... Bd4 {simplifies} 48. Rxa3 Bxf2 49. Rf3 Bd4) 48. c5 {[%emt 0:00:03]} Nb5 {[%emt 0:00:01]} 49. Ra8 {[%emt 0:00:01]} Kg6 {[%emt 0:00:02]} 50. Kb3 {[%emt 0:00:02]} Kf5 {[%emt 0:00:01]} 51. Kc4 {[%emt 0:00:01]} Nd4 {[%emt 0:00:04]} 52. g3 $2 {[%emt 0:00:04]} (52. Ra5 $11 {and White stays safe.} Ke5 53. Ra8) 52... Ke4 {[%emt 0:00:01]} (52... Ke5 $1 $19 53. f4+ Ke4) 53. Ra6 $2 {[%emt 0:00:02][%mdl 8192]} (53. h4 $17 {was the crucial defense.}) 53... e5 $2 {[%emt 0:00:01]} (53... Kf3 $1 $19 54. Ra4 Kxf2) 54. f4 $1 $15 {[%emt 0:00:03]} exf4 {[%emt 0:00:02]} 55. gxf4 {[%emt 0:00:01]} Kxf4 {[%emt 0:00:01]} 56. Kd5 {[%emt 0:00:03] [#]} Kg3 {[%emt 0:00:05]} ({Better is} 56... Nb5 $1 $17 {[%cal Rb5c7]} 57. Kc4 Nc7) 57. c6 $11 {[%emt 0:00:01] [#]} Nxc6 {[%emt 0:00:01]} 58. Kxc6 {[%emt 0:00:01]} Kxh3 {[%emt 0:00:01][%mdl 4096] Endgame KR-KB} 59. Kd5 {[%emt 0:00:02]} g5 {[%emt 0:00:01]} 60. Ke4 {[%emt 0:00:04]} g4 {[%emt 0:00:01]} 61. Kf4 $2 {[%emt 0:00:03][%mdl 8192]} (61. Ra5 $1 $11 Kh2 62. Kd3) 61... Bc1+ $19 {[%emt 0:00:02]} ({Inferior is} 61... g3 62. Kf3 Kh2 63. Rh6+ Kg1 64. Kxg3 $11) 62. Ke4 {[%emt 0:00:00] [#]} Kg2 $2 {[%emt 0:00:01]} (62... g3 $1 $19 {[%cal Rg3g2] has better winning chances. ( -> ...g2)} 63. Kf3 g2) 63. Rc6 $2 {[%emt 0:00:03][%mdl 8192]} (63. Kd3 $17) 63... Bb2 {[%emt 0:00:01]} 64. Kf4 {[%emt 0:00:01]} a2 $2 {[%emt 0:00:02]} (64... g3 {mates} 65. Rc2+ Kh3 66. Rc6 a2 67. Rh6+ Kg2 68. Rg6 a1=Q 69. Rxg3+ Kh2 70. Rd3 Qe1 71. Re3 Bc1 72. Ke5 Qxe3+ 73. Kd5 Qd3+ 74. Kc5 Be3+ 75. Kc6 Qd4 76. Kc7 Qd5 77. Kc8 Qc6+ 78. Kb8 Qd7 79. Ka8 Qc8#) 65. Ra6 $1 $11 {[%emt 0:00:01] The position is equal.} a1=Q {[%emt 0:00:04]} 66. Rxa1 {[%emt 0:00:01]} Bxa1 {[%emt 0:00:01]} 67. Kxg4 {What a fight!   Weighted Error Value: White=0.26 (precise) /Black=0.34} 1/2-1/2

[Event "4th Tata Steel India Blitz Open 2022"]
[Site "Kolkota"]
[Date "2022.12.04"]
[Round "14.2"]
[White "Erigaisi Arjun"]
[Black "So, Wesley"]
[Result "1-0"]
[ECO "D00"]
[WhiteElo "2718"]
[BlackElo "2760"]
[Annotator "TA"]
[PlyCount "85"]
[EventDate "2022.11.29"]
[EventType "tourn"]
[EventCountry "IND"]
[SourceTitle "playchess.com"]
[Source "ChessBase"]
[SourceQuality "1"]
[TimeControl "180+2"]

{[%evp 9,85,0,0,-7,0,-2,-14,-6,0,0,0,-2,10,0,0,0,38,28,73,72,88,18,21,0,7,-29,0,0,14,16,48,52,39,42,41,40,29,0,31,34,186,198,189,160,299,256,351,343,335,327,311,240,240,240,265,265,265,265,320,308,887,896,871,740,709,877,878,859,842,819,719,639,1091,1070,1035,995,848,770]} 1. d4 {[%emt 0:00:01]} Nf6 {[%emt 0:00:01]} 2. Nc3 {[%emt 0:00:02]} d5 {[%emt 0:00:01]} 3. Bf4 {[%emt 0:00:02]} e6 {[%emt 0:00:01]} 4. Nb5 {[%emt 0:00:01]} Na6 {[%emt 0:00:01]} 5. e3 {[%emt 0:00:02]} Be7 {[%emt 0:00:01]} 6. Nf3 {[%emt 0:00:01] D00: 1 d4 d5: Unusual lines.} O-O {[%emt 0:00:07]} 7. h4 {[%emt 0:00:01]} c6 {[%emt 0:00:02]} 8. Nc3 {[%emt 0:00:02] The position is equal.} Qb6 {[%emt 0:00:03]} 9. Rb1 {[%emt 0:00:08]} c5 {[%emt 0:00:03]} 10. a3 {[%emt 0:00:07]} Bd7 {[%emt 0:00:02] [#]} 11. Ne5 $146 {[%emt 0:00:07]} ({Predecessor:} 11. Bd3 c4 12. Be2 Qd8 13. Ne5 Be8 14. g4 Nd7 15. Nf3 Nc7 16. g5 b5 17. h5 {½-½ (30) Cirulis,I (2239)-Mirra,T (2164) FICGS email 2020}) 11... Nb8 {[%emt 0:00:17]} 12. g4 {[%emt 0:00:07][%cal Bg2g4,Bg4g5][%mdl 32]} Bc6 {[%emt 0:00:43]} 13. g5 {[%emt 0:00:01]} Ne4 {[%emt 0:00:04]} 14. Nxe4 {[%emt 0:00:17]} dxe4 {[%emt 0:00:01]} 15. Rh3 {[%emt 0:00:34] White is more active.} ({Better is} 15. Nc4 $16 Qb5 16. Nd2) 15... Nd7 $11 {[%emt 0:00:13]} 16. Nxc6 {[%emt 0:00:31]} Qxc6 {[%emt 0:00:09]} 17. h5 {[%emt 0:00:14]} cxd4 {[%emt 0:00:09]} (17... Rad8 $5 {[%cal Re6e5]}) 18. exd4 {[%emt 0:00:02]} Qd5 {[%emt 0:00:01]} 19. Rg3 {[%emt 0:00:14]} Rad8 {[%emt 0:00:14]} (19... Nb6 {is interesting.} 20. c3 f5 21. gxf6 Bxf6 22. Qe2 Bxd4 23. Rg4 Qa5) 20. c4 $1 {[%emt 0:00:03]} Qf5 {[%emt 0:00:23]} 21. Qg4 {[%emt 0:00:02]} (21. Bc7 {keeps more tension.} Bxg5 22. Qg4 Rc8 23. Bd6) 21... Qxg4 {[%emt 0:00:22]} 22. Rxg4 {[%emt 0:00:02]} f5 {[%emt 0:00:01]} 23. Rg3 {[%emt 0:00:01]} Nb8 {[%emt 0:00:04]} 24. Rd1 {[%emt 0:00:05]} Bd6 $2 {[%emt 0:00:04] This costs Black the game.} (24... Nc6 $14) 25. Bxd6 $18 {[%emt 0:00:06]} Rxd6 {[%emt 0:00:01] [#]} 26. c5 $1 {[%emt 0:00:03]} Rd5 {[%emt 0:00:21]} (26... Rd7 $16) 27. Bc4 {[%emt 0:00:03]} Rfd8 {[%emt 0:00:01]} 28. Rb3 {[%emt 0:00:14]} R8d7 {[%emt 0:00:02]} 29. Bxd5 {[%emt 0:00:04]} exd5 {[%emt 0:00:01][%mdl 4096] Endgame KRR-KRN} 30. f4 {[%emt 0:00:18]} Nc6 {[%emt 0:00:03]} 31. Ke2 {[%emt 0:00:02]} Kf7 {[%emt 0:00:02]} 32. Rg3 {[%emt 0:00:04] Hoping for g6+.} Ke6 {[%emt 0:00:02]} 33. b4 {[%emt 0:00:02]} a6 {[%emt 0:00:04]} 34. Rb3 {[%emt 0:00:04]} b5 $2 {[%emt 0:00:13] [#]} (34... Na7 35. a4 Nc8) 35. cxb6 {[%emt 0:00:05] White is clearly winning.} Rb7 {[%emt 0:00:00]} 36. Ke3 {[%emt 0:00:04]} Rxb6 {[%emt 0:00:01]} 37. Rc3 {[%emt 0:00:03]} Kd6 {[%emt 0:00:01]} 38. Rdc1 {[%emt 0:00:01]} Kd7 {[%emt 0:00:07]} 39. Rc5 {[%emt 0:00:02]} Kd6 {[%emt 0:00:01]} 40. R1c3 {[%emt 0:00:02]} h6 {[%emt 0:00:11]} 41. gxh6 {[%emt 0:00:05]} gxh6 {[%emt 0:00:00]} 42. Rc1 {[%emt 0:00:01]} Ne7 {[%emt 0:00:04]} 43. Rg1 {[%emt 0:00:04] Weighted Error Value: White=0.13 (very precise) /Black=0.30} 1-0

[Event "4th Tata Steel India Blitz Open 2022"]
[Site "Kolkota"]
[Date "2022.12.04"]
[Round "14.3"]
[White "Maghsoodloo, Parham"]
[Black "Mamedyarov, Shakhriyar"]
[Result "1/2-1/2"]
[ECO "D11"]
[WhiteElo "2720"]
[BlackElo "2741"]
[Annotator "TA"]
[PlyCount "58"]
[EventDate "2022.11.29"]
[EventType "tourn"]
[EventCountry "IND"]
[SourceTitle "playchess.com"]
[Source "ChessBase"]
[SourceQuality "1"]
[TimeControl "180+2"]

{[%evp 13,58,15,31,12,3,4,1,0,19,20,48,46,45,43,53,57,46,46,43,43,46,19,26,22,19,25,29,26,35,25,37,29,50,23,24,24,50,51,42,52,46,38,62,43,90,0,0]} 1. d4 {[%emt 0:00:03]} d5 {[%emt 0:00:01]} 2. Nf3 {[%emt 0:00:02]} Nf6 {[%emt 0:00:01]} 3. c4 {[%emt 0:00:01]} c6 {[%emt 0:00:01]} 4. e3 {[%emt 0:00:06]} Bg4 {[%emt 0:00:03]} 5. h3 {[%emt 0:00:02]} Bxf3 {[%emt 0:00:02]} 6. Qxf3 {[%emt 0:00:02]} e6 {[%emt 0:00:01]} 7. Nc3 {[%emt 0:00:01]} Nbd7 {[%emt 0:00:03]} 8. Bd2 {[%emt 0:00:04] D11: Slav Defence: 3 Nf3 sidelines and 3...Nf6 4 e3 Bg4.} Bb4 {[%emt 0:00:03]} 9. Bd3 {[%emt 0:00:12]} O-O {[%emt 0:00:06]} 10. O-O {[%emt 0:00:06]} e5 {[%emt 0:00:23] [#] White must now prevent ...e4.} 11. cxd5 {[%emt 0:00:04]} cxd5 {[%emt 0:00:06]} (11... Bxc3 {is more complex.} 12. Bxc3 Nxd5 13. Bc4 Nxc3 14. bxc3 Nb6) 12. Qd1 {[%emt 0:00:13] [#]} exd4 $146 {[%emt 0:00:05]} ({Predecessor:} 12... e4 13. Be2 Bd6 14. Qb3 Nb6 15. a4 Rc8 16. a5 Nc4 17. Bxc4 dxc4 18. Qxb7 Rb8 19. Qxa7 Rxb2 {½-½ (64) Malakhov,V (2716)-Dubov,D (2629) Warsaw 2013}) 13. exd4 {[%emt 0:00:02]} Qb6 {[%emt 0:00:24]} 14. Qb3 {[%emt 0:00:17] [#] Threatens to win with Na4.} Ba5 {[%emt 0:00:24]} (14... Qxd4 $2 15. Nb5 Nc5 16. Nxd4 $18 (16. Qxb4 Qxd3 17. Rfd1 Ne6 $11) (16. Bxb4 Nxb3 17. Nxd4 Nxd4 $16)) 15. Be3 {[%emt 0:00:29]} (15. Nxd5 $2 {is the wrong capture.} Qxb3 16. axb3 Bxd2 $19) 15... Qxb3 {[%emt 0:00:23]} 16. axb3 {[%emt 0:00:02]} Bb4 {[%emt 0:00:01]} 17. Na2 {[%emt 0:00:24]} Bd6 {[%emt 0:00:08]} 18. b4 {[%emt 0:00:02]} a6 {[%emt 0:00:08]} 19. b5 {[%emt 0:00:02]} axb5 {[%emt 0:00:02]} 20. Bxb5 {[%emt 0:00:01]} Nb6 {[%emt 0:00:12]} 21. Nc3 {[%emt 0:00:01]} h6 {[%emt 0:00:04]} 22. Rfc1 {[%emt 0:00:26]} Ne4 {[%emt 0:00:11]} 23. Ne2 {[%emt 0:00:17]} Rxa1 {[%emt 0:00:15]} 24. Rxa1 {[%emt 0:00:01]} Nc4 {[%emt 0:00:01]} 25. Bxc4 {[%emt 0:00:09]} dxc4 {[%emt 0:00:01]} 26. Nc3 {[%emt 0:00:02]} Nxc3 {[%emt 0:00:04]} 27. bxc3 {[%emt 0:00:01]} Rb8 {[%emt 0:00:12]} 28. g3 {[%emt 0:00:11]} g5 {[%emt 0:00:02]} (28... Kf8 $14 {feels stronger.}) 29. f4 {[%emt 0:00:12]} ({White should play} 29. g4 $16) 29... gxf4 {[%emt 0:00:07] Weighted Error Value: White=0.09 (flawless) /Black=0.09 (flawless)} 1/2-1/2